Cogmind - Beta 11.1 @@@ ROGUE MODE // 2022.06.19 @ 15:40:27 Player: ktur Result: Destroyed by 8R-AWN with 8R-AWN's Boregun Performance ------------- Evolutions (0) 0 Regions Visited (3) 600 Robots Destroyed (26) 130 Value Destroyed (724) 724 Prototype IDs (23) 460 Alien Tech Used (0) 0 Bonus (-102) -102 TOTAL SCORE: 1812 Bonus ------- Follower Combat Kills 42 Aligned with FarCom 300 Friendly Fire -444 Cogmind --------- Core Integrity 0/250 Matter 6/300 Energy 177/250 System Corruption 0% Temperature Danger (465) Movement Treading (240) Ox1 Location -10/Exiles Parts ------- > --- POWER (1) -------- Ion Engine > --- PROPULSION (2) --- Light Treads Light Treads > --- UTILITY (2) ------ High-capacity Storage Unit Visual Processing Unit > --- WEAPON (2) ------- Beam Cannon > --- INVENTORY (20) --- Ion Engine Wheel Compact Wheel Heat Sink Transport Network Coupler ECM Suite Hacking Suite EM Shotgun EM Shotgun EM Shotgun EM Shotgun Medium Laser Medium Laser Assault Rifle Grenade Launcher Peak State ------------ > --- POWER ------------ Ion Engine > --- PROPULSION ------- Light Treads Light Treads > --- UTILITY ---------- Large Storage Unit Visual Processing Unit > --- WEAPON ----------- Improved Light Cannon Improved Light Cannon > --- INVENTORY -------- Light Ion Engine Aluminum Leg Wheel Compact Wheel Hacking Suite EM Shotgun EM Shotgun EM Shotgun EM Shotgun Medium Laser Medium Laser Assault Rifle Light Assault Rifle Improved Light Cannon Grenade Launcher [Rating: 12] Favorites ----------- Power Ion Engine Engine Ion Engine Propulsion Light Treads Treads Light Treads Utility Visual Processing Unit Storage High-capacity Storage Unit Processor Visual Processing Unit Weapon Improved Light Cannon Energy Gun Medium Laser Energy Cannon Beam Cannon Ballistic Gun Assault Rifle Ballistic Cannon Improved Light Cannon Launcher Grenade Launcher Build | -11 -10 -10 -10 ------- Run | Scr Mat Min Exi Slots Evolved . | . . . . Power . | . . . . Propulsion . | . . . . Utility . | . . . . Weapon . | . . . . Parts Attached 23 | 6 10 . 7 Power 2 | 1 . . 1 Engine 2 | 1 . . 1 Core . | . . . . Reactor . | . . . . Propulsion 4 | 2 1 . 1 Treads 4 | 2 1 . 1 Leg . | . . . . Wheel . | . . . . Hover . | . . . . Flight . | . . . . Utility 4 | 1 3 . . Device . | . . . . Storage 3 | 1 2 . . Processor 1 | . 1 . . Hackware . | . . . . Protection . | . . . . Artifact . | . . . . Weapon 13 | 2 6 . 5 Energy Gun 1 | 1 . . . Energy Cannon 1 | . . . 1 Ballistic Gun 3 | 1 2 . . Ballistic Cannon 6 | . 3 . 3 Launcher 2 | . 1 . 1 Special Weapon . | . . . . Impact Weapon . | . . . . Slashing Weapon . | . . . . Piercing Weapon . | . . . . Special Melee Weapon . | . . . . Unidentified Prototypes . | . . . . Parts Lost 6 | . . . 6 Power 1 | . . . 1 Propulsion 1 | . . . 1 Utility . | . . . . Weapon 4 | . . . 4 Highest Loss Streak 5 | . . . 5 To Critical Strikes 5 | . . . 5 Average Slot Usage (%) 95 | . 93 100 99 Engine 13 | . 14 14 13 Treads 28 | . 28 28 28 Storage 14 | . 14 14 14 Processor 10 | . 7 14 14 Energy Gun 3 | . 6 . . Ballistic Gun 4 | . 8 . . Ballistic Cannon 18 | . 12 28 26 Naked Turns . | . . . . Heaviest Build 53 | 14 53 53 53 Greatest Support 40 | 40 40 40 40 Greatest Overweight (x) 2 | 2 1 1 1 Average Overweight (x) . | . . 1 1 Largest Inventory Capacity 20 | 8 20 20 20 Average Capacity 16 | 7 14 20 20 Most Carried 20 | 6 20 20 20 Average Carried 15 | 3 13 20 19 Final Capacity 20 | 8 20 20 20 Final Carried 20 | 6 20 20 15 Class Distribution -------------------- 100% | Mutant Dominant Class ---------------- Mutant | -10/Materials Mutant | -10/Mines Mutant | -10/Exiles Resources | -11 -10 -10 -10 ----------- Run | Scr Mat Min Exi Matter Collected 625 | 194 415 16 . Remotely . | . . . . Salvage Created 930 | . 912 . 18 Parts 46 | . 46 . . Haulers Intercepted 1 | . 1 . . Recyclers Shooed . | . . . . Parts Field Recycled . | . . . . Retrieved Matter . | . . . . Parts Self-Destructed . | . . . . Prevented . | . . . . Kills | -11 -10 -10 -10 ------- Run | Scr Mat Min Exi Combat Hostiles Destroyed 21 | . 18 . 3 Guns 9 | . 9 . . Cannons 9 | . 9 . . AOE 3 | . . . 3 Classes Destroyed 8 | . 7 . 1 Worker 2 | . 2 . . Builder 1 | . 1 . . Hauler 1 | . 1 . . Recycler 1 | . 1 . . Operator 2 | . 2 . . Watcher 1 | . 1 . . Grunt 18 | . 18 . . Assembled 6 | . . . 6 Best Kill Streak 4 | . 4 . 3 Combat Bots Only 4 | . 4 . 3 Max Kills in Single Turn 3 | . 2 . 3 Gunslinging . | . . . . Exploded 2 | . . . 2 Melee . | . . . . Uniques/NPCs Destroyed . | . . . . Combat | -11 -10 -10 -10 -------- Run | Scr Mat Min Exi Damage Taken 1426 | . 452 59 915 Core 259 | . 103 8 148 Absorbed by Shields . | . . . . Regen/Repaired (Parts) 198 | . 198 . . Core Remaining (%) 100 | 100 . . . Volleys Fired 107 | . 63 2 42 Largest 2 | . 2 2 2 Hottest 99 | . 78 78 99 Shots Fired 189 | . 117 4 68 Gun 88 | . 88 . . Cannon 95 | . 28 4 63 Launcher 6 | . 1 . 5 Special . | . . . . Kinetic 131 | . 76 4 51 Thermal 52 | . 40 . 12 Explosive 6 | . 1 . 5 Electromagnetic . | . . . . Robot Hit Streak 14 | . 14 1 7 Robot Miss Streak 5 | . 3 2 5 Penetration Max . | . . . . Secondary Targets . | . . . . Shots Hit Robots 125 | . 81 1 43 Core Hits 66 | . 43 . 23 Critical Kills . | . . . . Critical Parts Destroyed . | . . . . Critical Strikes 4 | . 4 . . Burn 3 | . 3 . . Blast 1 | . 1 . . Melee Attacks . | . . . . Impact . | . . . . Slashing . | . . . . Piercing . | . . . . Sneak Attacks . | . . . . Combat Hostiles . | . . . . Follow-up Attacks . | . . . . Damage Inflicted 2408 | . 1258 25 1125 Guns 854 | . 854 . . Cannons 1219 | . 344 25 850 Explosions 288 | . 13 . 275 Melee . | . . . . Ramming 47 | . 47 . . Kinetic 1499 | . 762 25 712 Thermal 574 | . 436 . 138 Explosive 288 | . 13 . 275 Electromagnetic . | . . . . Impact . | . . . . Slashing . | . . . . Piercing . | . . . . Highest Corruption . | . . . . Average Corruption . | . . . . Corruption Purged . | . . . . Corruption Blocked . | . . . . Overload Shots . | . . . . Overflow Damage . | . . . . Projectiles . | . . . . Explosions . | . . . . Melee . | . . . . Knockbacks 3 | . 3 . . Impact 1 | . 1 . . Kinetic 2 | . 2 . . Secondary . | . . . . Self-Inflicted Damage . | . . . . Shots . | . . . . Rammed 7 | . 7 . . Targets Rammed 7 | . 7 . . Kicked . | . . . . Crushed . | . . . . Highest Temperature 465 | . 179 36 465 Average Temperature 96 | . 49 20 188 Received Heat Transfer 282 | . 273 . 9 Effects 3 | . . . 3 Shutdowns 1 | . . . 1 Energy Bleed 2 | . . . 2 Siege Activations . | . . . . Robots Corrupted . | . . . . Combat Hostiles . | . . . . Parts Fried . | . . . . Impact Corruptions . | . . . . Robots Melted . | . . . . Combat Hostiles . | . . . . Parts Melted 6 | . 6 . . Heat Transferred 1552 | . 1480 . 72 Parts Sabotaged . | . . . . Parts Stolen . | . . . . Parts Stripped . | . . . . Power Chain Reactions . | . . . . Missiles Intercepted . | . . . . Alert | -11 -10 -10 -10 ------- Run | Scr Mat Min Exi Peak Influence 351 | . 351 200 . Initial 44 | . . 44 . Average 165 | . 186 126 . Maximum Alert Level 1 | . 1 1 . Low Security (%) 67 | 100 60 82 . Level 1 32 | . 39 17 . Level 2 . | . . . . Level 3 . | . . . . Level 4 . | . . . . Level 5 . | . . . . High Security . | . . . . Max Security . | . . . . Squads Dispatched 6 | . 6 . . Investigation 4 | . 4 . . Extermination . | . . . . Reinforcement 2 | . 2 . . Assault . | . . . . Garrison . | . . . . Intercept . | . . . . Searches Triggered . | . . . . Construction Impeded . | . . . . Haulers Reinforced . | . . . . Active Scanning Responses . | . . . . Cargo Convoy Interrupts . | . . . . Stealth | -11 -10 -10 -10 --------- Run | Scr Mat Min Exi Distress Signals 2 | . 2 . . Communications Jammed . | . . . . Distress Signals . | . . . . Times Spotted 41 | . 33 3 5 Peak Tracking Total 6 | . 5 3 6 Tactical Retreats . | . . . . Traps | -11 -10 -10 -10 ------- Run | Scr Mat Min Exi Traps Triggered 2 | . 2 . . Indirectly . | . . . . Trap Hack Attempts . | . . . . Triggered . | . . . . Disarmed 2 | . 2 . . Reprogrammed . | . . . . Reused . | . . . . Traps Extracted . | . . . . Installed . | . . . . Triggered . | . . . . Machines | -11 -10 -10 -10 ---------- Run | Scr Mat Min Exi Machines Disabled 4 | . . 1 3 Max in Single Turn 1 | . . 1 1 Machines Sabotaged . | . . . . Garrisons Compromised . | . . . . Overloaded Fab Kills . | . . . . Hacking | -11 -10 -10 -10 --------- Run | Scr Mat Min Exi Machines Accessed 11 | . 8 1 2 Terminals 6 | . 5 1 . Fabricators . | . . . . Repair Stations 1 | . 1 . . Recycling Units 2 | . 2 . . Scanalyzers . | . . . . Garrison Access . | . . . . Total Hacks 37 | . 31 4 2 Successful 19 | . 17 . 2 Failed 17 | . 13 4 . Catastrophic 2 | . 1 1 . Database Lockouts 1 | . 1 . . Manual 26 | . 21 4 1 Terminals 26 | . 22 4 . Fabricators . | . . . . Repair Stations 5 | . 5 . . Recycling Units 4 | . 4 . . Scanalyzers . | . . . . Garrison Access . | . . . . Terminal Hacks 10 | . 8 . 2 Record 1 | . . . 1 Robot Analysis 2 | . 2 . . Alert Level 1 | . 1 . . Unreport Threat 1 | . 1 . . Locate Traps 2 | . 2 . . Disarm Traps 1 | . 1 . . Hauler Manifests 1 | . 1 . . EX-Prototype ID Bank 1 | . . . 1 Fabricator Hacks . | . . . . Repair Station Hacks 4 | . 4 . . Scan Component 2 | . 2 . . Repair 2 | . 2 . . Recycling Unit Hacks . | . . . . Scanalyzer . | . . . . Garrison Access Hacks . | . . . . Unauthorized Hacks 5 | . 5 . . Terminals 3 | . 3 . . Botnet 2 | . 2 . . Operators 1 | . 1 . . Fabricators . | . . . . Repair Stations . | . . . . Recycling Units 2 | . 2 . . Tunnel 2 | . 2 . . Scanalyzers . | . . . . Garrison Access . | . . . . Data Cores Recovered . | . . . . Used . | . . . . Hacking Detections 8 | . 7 1 . Full Trace Events . | . . . . Feedback Events . | . . . . Feedback Blocked . | . . . . Robot Schematics Acquired . | . . . . Robots Built . | . . . . Authchips . | . . . . Time . | . . . . Total Robot Build Rating . | . . . . Part Schematics Acquired . | . . . . Parts Built . | . . . . Authchips . | . . . . Time . | . . . . Total Part Build Rating . | . . . . Parts Repaired 2 | . 2 . . Time 52 | . 52 . . Parts Recycled . | . . . . Recycled Matter . | . . . . Retrieved Matter . | . . . . Retrieved Components . | . . . . Parts Scanalyzed . | . . . . Part Schematics Acquired . | . . . . Parts Damaged . | . . . . Bothacking | -11 -10 -10 -10 ------------ Run | Scr Mat Min Exi Used RIF Installer . | . . . . Robots Hacked . | . . . . Non-combat . | . . . . Combat . | . . . . Robot Hacks Applied . | . . . . Relay Couplers Released . | . . . . Fabnet Peak Effective % . | . . . . Robots Rewired . | . . . . Allies Hacked . | . . . . Hacks Repelled . | . . . . Allies | -11 -10 -10 -10 -------- Run | Scr Mat Min Exi Total Allies 3 | . . 3 . Largest Group 3 | . . 3 2 Highest-Rated Group 40 | . . 40 24 Highest-Rated Ally 16 | . . 16 16 Total Orders 1 | . . . 1 STAY 1 | . . . 1 Ally Attacks 32 | . . 22 10 Total Damage 266 | . . 173 93 Kills 7 | . . 6 1 Allies Corrupted . | . . . . Allies Melted . | . . . . Intel | -11 -10 -10 -10 ------- Run | Scr Mat Min Exi Robot Analysis Total 2 | . 2 . . Derelict Logs Recovered . | . . . . Drone Launches . | . . . . Drone Recoveries . | . . . . Exploration | -11 -10 -10 -10 ------------- Run | Scr Mat Min Exi Turns Passed 2587 | 80 1422 422 663 Spaces Moved 1011 | 47 564 173 227 Core 12 | 12 . . . Treads 999 | 35 564 173 227 Legs . | . . . . Wheels . | . . . . Hover . | . . . . Flight . | . . . . Fastest Speed 50 | 50 160 240 240 Average Speed 208 | 138 192 240 240 Slowest Speed 240 | 160 240 240 240 Overloaded Moves . | . . . . Propulsion Burnouts . | . . . . Robots Hopped . | . . . . Cave-ins Triggered . | . . . . Exploration Rate (%) 40 | 3 65 40 55 Regions Visited 3 Branch Regions 2 Pre-discovered Areas 3 | . 2 . 1 Known Exits Taken . | . . . . Unknown Exits Taken 3 | 1 1 1 . Scrap Searched 1 | . . 1 . Spaces Dug . | . . . . Terrain Destroyed 38 | . 8 1 29 Melee . | . . . . Projectile 5 | . 2 1 2 AOE 33 | . 6 . 27 Terrain Rammed . | . . . . Walls Destroyed . | . . . . Machines Disabled . | . . . . Actions | -11 -10 -10 -10 --------- Run | Scr Mat Min Exi Total 1290 | 60 777 177 276 Wait 111 | . 108 3 . Move 1008 | 46 563 172 227 Hop . | . . . . Pick Up 28 | 8 20 . . Fast Attach 6 | 4 2 . . Attach 8 | 2 1 . 5 Detach . | . . . . Swap 9 | . 7 . 2 Drop 6 | . 6 . . Fire 107 | . 63 2 42 Melee . | . . . . Ram . | . . . . Kick . | . . . . Crush 7 | . 7 . . Escape Stasis . | . . . . Rewire . | . . . . Trap . | . . . . Miscellaneous . | . . . . Route ------- -11/Scrapyard -10/Materials (discovered 2 exits: [*Mat] / *Min) -10/Mines -10/Exiles History --------- Turn | Location | Event 17 | -11/Scrapyard | Discovered new exit (range 15) 81 | -11/Scrapyard | Entered Materials 277 | -10/Materials | Central database locked down 310 | -10/Materials | Build established: Mutant 784 | -10/Materials | Discovered new exit (range 8) 1145 | -10/Materials | Discovered new exit (range 7) 1401 | -10/Materials | Repaired Lgt. Treads 1428 | -10/Materials | Repaired Assault Rifle 1503 | -10/Materials | Entered Mines 1508 | -10/Mines | Assisted by bots powering up and referring to "LRC-V3" 1916 | -10/Mines | Deemed a non-threat by the Exiles lab entrance 1916 | -10/Mines | Discovered new exit (range 5) 1925 | -10/Mines | Entered Exiles 1925 | -10/Exiles | Accompanied by 2 allies 1983 | -10/Exiles | Met 8R-AWN 2024 | -10/Exiles | Met EX-HEX 2149 | -10/Exiles | Met EX-DEC 2170 | -10/Exiles | Learned location of Zion (-6) 2230 | -10/Exiles | Met EX-BIN 2257 | -10/Exiles | Aligned with FarCom system 2259 | -10/Exiles | Given EX-Vault access code 2319 | -10/Exiles | Opened EX-Vault 2379 | -10/Exiles | Warned to stay clear of 0b10 Research branches 2473 | -10/Exiles | Attacked by the Exiles 2477 | -10/Exiles | Core integrity fell below 50% 2497 | -10/Exiles | Core integrity fell below 20% 2579 | -10/Exiles | Lost 5 parts (1p1n3w) 2588 | -10/Exiles | Destroyed by 8R-AWN with 8R-AWN's Boregun Last Messages --------------- 02508_ Penetrated by HV Slug. 02511_ The unstable cave ceiling collapses. 02513_ Penetrated by HV Slug. 02522_ Critical hit (Destroy). 02522_ Ion Engine destroyed. 02522_ Penetrated by HV Slug. 02544_ The unstable cave ceiling collapses. 02544_ Penetrated by HV Slug. 02544_ Critical hit (Destroy). 02544_ Lgt. Treads destroyed. 02548_ Penetrated by HV Slug. 02548_ Critical hit (Destroy). 02548_ Imp. Light Cannon destroyed. 02553_ Penetrated by HV Slug. 02582_ Critical hit (Destroy). 02582_ Imp. Light Cannon destroyed. 02583_ Overheating: Energy bleed (-37). 02587_ Power failure, Ion Engine shutdown. 02587_ Overheating: Energy bleed (-54). 02588_ Penetrated by HV Slug. Map ----- +----------------------------------------------------+ | #???????## """"???????????????????????? | | ?????????# """#???????????????????????? | | #????????#" "X" """"???????????????????????? | | #????????#" """ #???????????????????????? | | ?????????#" """""""""#???????????????????????? | | ????????##" ###########???????????????????????? | | ???????##"" #?????????????????????????????????? | | #?######"" #?????????????????????????????????? | | ###""""""" ##????????????????????????????????? | | """"" " "" ##???###########?????????????????? | | " """ " #####"""""""""##????????????????? | | " " " """ """"##???????????????? | | "" " #???????????????? | | " """#???????????????? | | "a"#???????????##### | | " "##?????????##" # | | ""###???????#" # | | """""" """#??????##" # | | ######""" "#????### | | ""##????#####""" ##???# | | """##?????????##""" ##?## | | """##???????????#"""" ###% | | ""#???????????##"" g % ## | | ##?????????###"""" % #### | | ?????????#""" %%""#?#"" | | ????????""" @ #"""##?### | | ???? % %% ######????? | | ???? ##?????????? | | ????? " ##??????????? | | ?????" "" "" #???????????? | | ???????## ##""" " " ""#" #???????????? | | ????????# ??#####""" """##" ##???????????? | | ?????????????????###""""### ## # # #???????????? | | ????????????????????######??# #???????????? | | ????????????????????????????? #???????????? | | ?????????????????????????????#########???????????? | | ?????????????????????????????????????????????????? | | ?????????????????????????????????????????????????? | | ?????????????????????????????????????????????????? | | ?????????????????????????????????????????????????? | | ?????????????????????????????????????????????????? | | ?????????????????????????????????????????????????? | | ?????????????????????????????????????????????????? | | ?????????????????????????????????????????????????? | | ?????????????????????????????????????????????????? | | ?????????????????????????????????????????????????? | | ?????????????????????????????????????????????????? | | ?????????????????????????????????????????????????? | | ?????????????????????????????????????????????????? | | ?????????????????????????????????????????????????? | +----------------------------------------------------+ Best States ------------- Heat Dissipation 25 Energy Generation 10 Energy Capacity 250 Matter Stores 300 Matter Capacity 300 Sight Range 18 Terrain Scan Density 10 Evasion (%) 50 Recoil Reduction 2 Item Schematics ----------------- None Robot Schematics ------------------ None Fabricated ------------ Nothing Alien Tech Used ----------------- None Achievements -------------- None Challenges ------------ None Game ------ Seed MediumRemoteActivator Manual? 0 Play Time 00:14:00 Cumulative 485.1 hours Start 2022.06.19 @ 15:29:25 End 2022.06.19 @ 15:40:27 Sessions 1 Manual Loads 0 Difficulty Rogue Special Mode None Game No. 457 Rogue 457 Adventurer 0 Explorer 0 Win Type - Total 22 Types 13/2/4/2/0/0/0/1/0 Lore% 94 Gallery% 93 Achievement% 78 Wizard Run 0 Options --------- ASCII 0 Keyboard 0 Movement Arrows Keybinds 0 Fullscreen 1 Font 18/Smallcaps Map View 76x50 Tactical HUD 1 Map Filters NONE Filters NONE Steam 1 RUN: 4f828891-fed5-4961-83bc-629a27d15f5a